bitfinex/quotes_BTCUSD_20251230
["timestamp","ask_amount","ask_price","bid_price","bid_amount"]
[1767118258011,0.56112957,88360.0,88346.0,0.28819]
[1767118258430,0.5724469,88360.0,88346.0,0.28819]
[1767118258636,0.5724469,88360.0,88346.0,0.29950913]
[1767118259027,0.01131759,88358.0,88346.0,0.28819]
[1767118259238,0.5724469,88360.0,88346.0,0.28819]
[1767118259761,0.62903373,88360.0,88346.0,0.28819]
[1767118259940,0.5724469,88360.0,88346.0,0.28819]
[1767118260130,0.01131746,88359.0,88346.0,0.28819]
[1767118260327,0.01131759,88358.0,88346.0,0.28819]
[1767118260753,0.01131772,88357.0,88344.0,0.0002]
[1767118260952,0.000175,88346.0,88342.0,0.01136]
[1767118261316,0.28181797,88355.0,88342.0,0.01136]
[1767118261522,0.54976957,88352.0,88342.0,0.01136]
[1767118261921,0.56112957,88360.0,88342.0,0.29107]
[1767118262122,0.5724469,88360.0,88352.0,0.000374]
[1767118262361,0.01131746,88359.0,88352.0,0.000374]
[1767118262559,0.01131746,88359.0,88344.0,0.01131938]
[1767118262762,0.01131759,88358.0,88343.0,0.01131951]
[1767118263065,0.0113181,88354.0,88342.0,0.01136]
[1767118263260,0.28181797,88355.0,88342.0,0.01136]
[1767118263477,0.0113181,88354.0,88342.0,0.01136]
[1767118263640,0.01131823,88353.0,88342.0,0.01136]
[1767118263842,0.01131849,88351.0,88342.0,0.01136]
[1767118264068,0.01131823,88353.0,88342.0,0.01136]
[1767118264266,0.28181797,88355.0,88342.0,0.01136]
[1767118264472,0.0113181,88354.0,88342.0,0.01136]
[1767118264650,0.2705,88355.0,88342.0,0.01136]
[1767118264851,0.0113181,88354.0,88342.0,0.01136]
[1767118265251,0.28181797,88355.0,88342.0,0.01136]
[1767118266078,0.0113181,88354.0,88342.0,0.01136]
[1767118266489,0.01131669,88365.0,88348.0,0.27971]
[1767118266687,0.01054014,88364.0,88351.0,0.27971]
[1767118266862,0.01054014,88363.0,88351.0,0.34762055]
[1767118267069,0.01136,88365.0,88353.0,0.01131823]
[1767118267262,0.01136,88365.0,88354.0,0.0113181]
[1767118267587,0.01136,88365.0,88351.0,0.34762046]
[1767118268373,0.01136,88365.0,88354.0,0.0113181]
[1767118268568,0.01136,88365.0,88353.0,0.01131823]
[1767118268769,0.01136,88365.0,88352.0,0.01131836]
[1767118268989,0.01136,88365.0,88353.0,0.01131823]
[1767118269194,0.2705,88366.0,88353.0,0.01131823]
[1767118269640,0.01136,88370.0,88354.0,0.27971]
[1767118269792,0.01053921,88369.0,88357.0,0.27971]
[1767118269989,0.01131618,88369.0,88357.0,0.27971]
[1767118270374,0.01131631,88368.0,88357.0,0.27971]
[1767118270826,0.01131618,88369.0,88357.0,0.27971]
[1767118271592,0.01131644,88367.0,88357.0,0.27971]
[1767118271795,0.01131631,88368.0,88357.0,0.27971]
[1767118272099,0.5618902,88370.0,88357.0,0.27971]
[1767118272282,0.02267605,88370.0,88357.0,0.27971]
[1767118272794,0.01136,88370.0,88357.0,0.27971]
[1767118273135,0.02267605,88370.0,88357.0,0.29107]
[1767118273535,0.01136,88370.0,88357.0,0.29107]
[1767118273739,0.02267605,88370.0,88357.0,0.29107]
[1767118273972,0.01131618,88369.0,88357.0,0.29107]
[1767118274397,0.57320625,88370.0,88357.0,0.29107]
[1767118274945,0.01131618,88369.0,88357.0,0.29107]
[1767118275302,0.57320625,88370.0,88357.0,0.29107]
[1767118276540,0.28181567,88373.0,88357.0,0.30238772]
[1767118276541,0.01131567,88373.0,88357.0,0.30238772]
[1767118276731,0.01131554,88374.0,88358.0,0.30106759]
[1767118276902,0.01167114,88374.0,88358.0,0.30106759]
[1767118277117,0.01167114,88374.0,88359.0,0.01131746]
[1767118277331,0.0003556,88374.0,88363.0,0.01131695]
[1767118277544,0.0003556,88374.0,88366.0,0.30106656]
[1767118277866,0.33942194,88384.0,88364.0,0.06794377]
[1767118277867,0.29416336,88391.0,88373.0,0.01131567]
[1767118278019,0.01053435,88386.0,88376.0,0.28975]
[1767118278225,0.00029922,88387.0,88377.0,0.28975]
[1767118280763,0.00029922,88387.0,88374.0,0.02267554]
[1767118280764,8.022e-05,88387.0,88379.0,0.0113149]
[1767118280974,8.022e-05,88387.0,88380.0,0.28975]
[1767118281198,8.022e-05,88387.0,88382.0,0.28975]
[1767118281860,8.022e-05,88387.0,88382.0,0.300561]
[1767118282504,8.022e-05,88387.0,88382.0,0.01136]
[1767118285066,8.022e-05,88387.0,88382.0,0.31242452]
[1767118285286,8.022e-05,88387.0,88383.0,0.01131439]
[1767118285487,8.022e-05,88387.0,88383.0,0.30106439]
[1767118285696,8.022e-05,88387.0,88383.0,0.28975]
[1767118287196,8.022e-05,88387.0,88382.0,0.01136]
[1767118289189,8.022e-05,88387.0,88382.0,0.01081]
[1767118289395,0.28285,88384.0,88377.0,0.01136]
[1767118289703,0.28285,88382.0,88377.0,0.01136]
[1767118289858,0.01131413,88385.0,88377.0,0.01136]
[1767118290246,0.05657068,88385.0,88377.0,0.01136]
[1767118290451,0.01131413,88385.0,88377.0,0.01136]
[1767118290726,0.28285,88385.0,88377.0,0.01136]
[1767118290934,0.29416413,88385.0,88377.0,0.01136]
[1767118291585,0.28285,88385.0,88377.0,0.01136]
[1767118292016,0.28285,88381.0,88371.0,0.01136]
[1767118292264,0.29416464,88381.0,88371.0,0.01136]
[1767118292456,0.05657921,88372.0,88352.0,0.05659177]
[1767118292687,0.01131592,88371.0,88358.0,0.01136]
[1767118292880,0.2941658,88372.0,88358.0,0.01136]
[1767118293099,0.28285,88372.0,88358.0,0.02267759]
[1767118293445,0.28285,88372.0,88359.0,0.01131746]
[1767118294474,0.28285,88372.0,88358.0,0.02267759]
[1767118294684,0.3507453,88372.0,88358.0,0.01136]
[1767118294883,0.2941658,88372.0,88358.0,0.01136]
[1767118295108,0.01131592,88371.0,88358.0,0.01136]
[1767118295307,0.28285,88371.0,88358.0,0.01136]
[1767118295888,0.28285,88371.0,88358.0,0.02267759]
[1767118296280,0.28285,88371.0,88359.0,0.01131746]
[1767118296631,0.28285,88371.0,88358.0,0.02267759]
[1767118296826,0.28285,88371.0,88358.0,0.01136]
[1767118297081,0.28285,88371.0,88358.0,0.02267759]
[1767118297584,0.06789382,88374.0,88358.0,0.01136]
[1767118297807,0.01131592,88371.0,88358.0,0.01136]
[1767118298013,0.2941658,88372.0,88358.0,0.01136]
[1767118298433,0.5505302,88370.0,88358.0,0.01136]
[1767118301175,0.5505302,88370.0,88358.0,0.02267759]
[1767118301523,0.5505302,88370.0,88360.0,0.01131733]
[1767118301731,0.5505302,88370.0,88359.0,0.01136]
[1767118301943,0.5505302,88370.0,88359.0,0.02267746]
[1767118302460,0.5505302,88370.0,88360.0,0.01131733]
[1767118302661,0.5505302,88370.0,88359.0,0.01136]
[1767118302867,0.5505302,88370.0,88360.0,0.01131733]
[1767118303300,0.5505302,88370.0,88359.0,0.02267746]
[1767118303525,0.28285,88372.0,88359.0,0.02267746]
[1767118304313,0.01131554,88374.0,88359.0,0.31242746]
[1767118304884,0.30552541,88375.0,88359.0,0.31242746]
[1767118305031,0.01131554,88374.0,88359.0,0.31242746]
[1767118306656,0.01131567,88373.0,88359.0,0.30111]
[1767118307043,0.0113158,88372.0,88359.0,0.30111]
[1767118307899,0.5505302,88370.0,88359.0,0.30111]
[1767118309070,0.01131567,88373.0,88359.0,0.31242746]
[1767118309275,0.29294,88373.0,88359.0,0.02267746]
[1767118309479,0.29294,88373.0,88360.0,0.01131733]
[1767118310074,0.29294,88373.0,88359.0,0.02267746]
[1767118310075,0.30425567,88373.0,88359.0,0.01136]
[1767118310478,0.01131592,88371.0,88359.0,0.01136]
[1767118310676,0.5505302,88370.0,88359.0,0.01136]
[1767118312499,0.56184625,88370.0,88359.0,0.01136]
[1767118312705,0.29294,88367.0,88359.0,0.01136]
[1767118314786,0.56184625,88370.0,88359.0,0.01136]
[1767118314787,0.5505302,88370.0,88359.0,0.01136]
[1767118314989,0.56184625,88370.0,88359.0,0.01136]
[1767118315151,0.01131618,88369.0,88359.0,0.01136]
[1767118316252,0.56184625,88370.0,88359.0,0.01136]
[1767118316674,0.29294,88371.0,88359.0,0.01136]
[1767118317242,0.29294,88371.0,88359.0,0.02267746]
[1767118317467,0.29294,88371.0,88359.0,0.01136]
[1767118317680,0.29294,88371.0,88359.0,0.02267746]
[1767118318727,0.02267541,88375.0,88360.0,0.29589]
[1767118318976,0.01131567,88373.0,88360.0,0.29589]
[1767118319150,0.01131554,88374.0,88359.0,0.02267746]
[1767118319311,0.29626,88373.0,88359.0,0.02267746]
[1767118319708,0.29626,88373.0,88359.0,0.01136]
[1767118319905,0.29626,88373.0,88359.0,0.02267746]
[1767118320657,0.30757567,88373.0,88359.0,0.01136]
[1767118321210,0.29626,88373.0,88359.0,0.01136]
[1767118321925,0.5505302,88370.0,88359.0,0.01136]
[1767118323802,0.5505302,88370.0,88359.0,0.3015]
[1767118324323,0.5499812,88370.0,88360.0,0.30145733]
[1767118324670,0.55038001,88370.0,88360.0,0.29014]
[1767118325876,0.55038001,88370.0,88359.0,0.01136]
[1767118328426,0.55038001,88370.0,88359.0,0.02267746]
[1767118328628,0.0076,89499.0,88359.0,0.02267746]
[1767118328629,0.2965174,88391.0,88377.0,0.01131516]
[1767118328783,0.29507814,88396.0,88386.0,0.011314]
[1767118328984,0.29514651,88396.0,88387.0,0.01131388]
[1767118329210,0.29514651,88396.0,88386.0,0.011314]
[1767118329529,0.29514651,88396.0,88383.0,0.01131439]
[1767118330104,0.29514651,88396.0,88382.0,0.01131452]
[1767118330845,0.29514651,88396.0,88381.0,0.01131464]
[1767118330846,0.29626,88395.0,88381.0,0.01131464]
[1767118331211,0.30757285,88395.0,88380.0,0.80756478]
[1767118331409,0.30757285,88395.0,88378.0,0.01136]
[1767118331410,0.05656554,88394.0,88378.0,0.01136]
[1767118331615,0.29626,88395.0,88378.0,0.01136]
[1767118331616,0.29626,88387.0,88378.0,0.01136]
[1767118331971,0.011314,88386.0,88378.0,0.01136]
[1767118332173,0.29626,88387.0,88378.0,0.01136]
[1767118332705,0.01131426,88384.0,88370.0,0.24587]
[1767118332913,0.01131426,88384.0,88326.0,0.10155113]
[1767118332914,0.01131733,88360.0,88351.0,0.24587]
[1767118333081,0.01131695,88363.0,88353.0,0.01136]
[1767118333297,0.01131682,88364.0,88353.0,0.01136]
[1767118333580,0.30757656,88366.0,88353.0,0.01136]
[1767118334025,0.30757669,88365.0,88353.0,0.01136]
[1767118334669,0.01131682,88364.0,88353.0,0.01136]
[1767118334876,0.29626,88364.0,88353.0,0.01136]
[1767118335079,0.29626,88362.0,88353.0,0.01136]
[1767118339535,0.01136,88365.0,88353.0,0.01136]
[1767118339536,0.27131,88364.0,88362.0,0.000549]
[1767118339736,0.27131,88364.0,88353.0,0.02267823]
[1767118339938,0.27131,88364.0,88354.0,0.0113181]
[1767118340560,0.27131,88364.0,88353.0,0.02267823]
[1767118343701,0.27131,88364.0,88353.0,0.02281623]
[1767118344598,0.27131,88364.0,88353.0,0.011498]
[1767118347781,0.02274489,88366.0,88353.0,0.011498]
[1767118347782,0.27131,88362.0,88353.0,0.011498]
[1767118348651,0.27131,88352.0,88349.0,2e-07]
[1767118348793,0.27131,88351.0,88349.0,2e-07]
[1767118349002,0.32790299,88351.0,88349.0,2e-07]
[1767118349214,0.27131,88351.0,88349.0,2e-07]
[1767118349859,0.0113181,88354.0,88328.0,0.26001]
[1767118349860,0.28262938,88344.0,88328.0,0.26001]
[1767118350069,0.55038001,88340.0,88330.0,0.01136]
[1767118350431,0.55038001,88340.0,88333.0,0.01132079]
[1767118350643,0.27131,88343.0,88340.0,0.000549]
[1767118351327,0.27131,88343.0,88333.0,0.01132079]
[1767118351996,0.27131,88343.0,88334.0,0.01132066]
[1767118352200,0.27131,88343.0,88332.0,0.01132092]
[1767118352649,0.27131,88343.0,88333.0,0.01132079]
[1767118353081,0.27131,88343.0,88334.0,0.01132066]
[1767118353298,0.27131,88343.0,88335.0,0.01132054]
[1767118353517,0.270761,88343.0,88335.0,0.01132054]
[1767118353726,0.01136,88347.0,88335.0,0.01132054]
[1767118354153,0.01136,88347.0,88336.0,0.01132041]
[1767118354785,0.01136,88347.0,88335.0,0.01132054]
[1767118354999,0.01136,88347.0,88336.0,0.01132041]
[1767118356097,0.01136,88347.0,88335.0,0.01132054]
[1767118356299,0.01136,88347.0,88336.0,0.01132041]
[1767118356675,0.01136,88347.0,88335.0,0.01132054]
[1767118357080,0.01136,88347.0,88336.0,0.01132041]
[1767118357415,0.01136,88347.0,88335.0,0.01132054]
[1767118358344,0.01136,88347.0,88336.0,0.01132041]
[1767118359225,0.01136,88347.0,88335.0,0.01132054]
[1767118359626,0.01136,88347.0,88336.0,0.01132041]
[1767118359829,0.01136,88347.0,88335.0,0.01132054]
[1767118360007,0.01136,88347.0,88333.0,0.01132079]
[1767118360218,0.28267,88347.0,88335.0,0.01132054]
[1767118360420,0.28267,88347.0,88334.0,0.01132066]
[1767118360636,0.28267,88347.0,88335.0,0.01132054]
[1767118360835,0.01136,88347.0,88337.0,0.55038001]
[1767118361053,0.28262836,88352.0,88336.0,0.06792198]
[1767118361256,0.82169001,88350.0,88338.0,0.01132015]
[1767118361429,0.82169001,88350.0,88337.0,0.06792134]
[1767118361430,0.82169001,88350.0,88337.0,0.01132028]
[1767118361834,0.82169001,88350.0,88338.0,0.01132015]
[1767118362077,0.27131,88349.0,88337.0,0.01132028]
[1767118362231,0.27131,88349.0,88338.0,0.01132015]
[1767118362861,0.27131,88349.0,88337.0,0.01132028]
[1767118363063,0.27131,88349.0,88336.0,0.01132041]
[1767118363239,0.27131,88349.0,88337.0,0.01132028]
[1767118363444,0.27131,88349.0,88336.0,0.01132041]
[1767118364680,0.27131,88349.0,88333.0,0.05660355]
[1767118364851,0.27131,88349.0,88336.0,0.01132041]
[1767118365056,0.27131,88349.0,88335.0,0.01132054]
[1767118365292,0.27131,88349.0,88336.0,0.01132041]
[1767118365706,0.27131,88349.0,88334.0,0.01132066]
[1767118366001,0.27131,88349.0,88335.0,0.01132054]
[1767118366307,0.28576,88348.0,88335.0,0.01132054]
[1767118366520,0.28576,88348.0,88333.0,0.01132079]
[1767118366932,0.28576,88346.0,88331.0,0.06792622]
[1767118367067,0.29707913,88346.0,88331.0,0.01132105]
[1767118367256,0.011319,88347.0,88330.0,0.57306119]
[1767118367257,0.28576,88344.0,88330.0,0.57306119]
[1767118367452,0.28576,88344.0,88331.0,0.01132105]
[1767118368491,0.28576,88344.0,88330.0,0.57306119]
[1767118368705,0.28576,88344.0,88331.0,0.01132105]
[1767118368906,0.29707938,88344.0,88330.0,0.56174001]
[1767118369107,0.28576,88344.0,88331.0,0.01132105]
[1767118369471,0.28576,88344.0,88330.0,0.56174001]
[1767118369472,0.55038001,88341.0,88330.0,0.01136]
[1767118369670,0.55038001,88341.0,88326.0,0.01151189]
[1767118369671,0.000549,88330.0,88326.0,0.0001902]
[1767118369951,0.28576,88329.0,88326.0,0.0001902]
[1767118370893,0.28576,88329.0,88326.0,0.0005458]
[1767118371933,0.28576,88335.0,88326.0,0.0005458]
[1767118372140,0.28576,88335.0,88326.0,0.01186749]
[1767118372338,0.28576,88335.0,88326.0,0.0005458]
[1767118373950,0.28576,88335.0,88326.0,0.01186749]
[1767118374278,0.28576,88335.0,88327.0,0.01132156]
[1767118374467,0.01136,88338.0,88335.0,0.01132054]
[1767118374751,0.000549,88335.0,88328.0,0.01132143]
[1767118374929,0.000549,88335.0,88327.0,0.01132156]
[1767118375284,0.55038001,88340.0,88328.0,0.01132143]
[1767118375587,0.28576,88340.0,88328.0,0.01132143]
[1767118375802,0.83614001,88340.0,88328.0,0.01132143]
[1767118375979,0.83614001,88340.0,88327.0,0.01132156]
[1767118376185,0.83614001,88340.0,88330.0,0.01132118]
[1767118376386,0.83614001,88340.0,88328.0,0.01132143]
[1767118376744,0.83614001,88340.0,88329.0,0.01132131]
[1767118377283,0.83614001,88340.0,88331.0,0.01132105]
[1767118377662,0.83614001,88340.0,88327.0,0.06792877]
[1767118377663,0.28576,88340.0,88326.0,0.01186749]
[1767118377829,0.28576,88340.0,88329.0,0.01132131]
[1767118378237,0.28576,88340.0,88330.0,0.01132118]
[1767118378455,0.28576,88340.0,88329.0,0.01132131]
[1767118378656,0.000549,88329.0,88326.0,0.0005458]
[1767118378892,0.000549,88329.0,88326.0,0.01186749]
[1767118379358,0.28576,88340.0,88327.0,0.01132156]
[1767118380326,0.28576,88340.0,88326.0,0.01186749]
[1767118380728,0.28576,88340.0,88328.0,0.01132143]
[1767118380887,0.28576,88340.0,88326.0,0.01186749]
[1767118381090,0.28576,88340.0,88325.0,0.0681305]
[1767118381091,0.27777,88335.0,88325.0,0.0002]
[1767118381313,0.27777,88335.0,88325.0,0.00030662]
[1767118381516,0.27777,88335.0,88325.0,0.00010662]
[1767118381717,0.01136,88338.0,88331.0,0.01132105]
[1767118381919,0.01136,88338.0,88329.0,0.06792746]
[1767118382522,0.82815001,88340.0,88329.0,0.01132131]
[1767118382682,0.06791418,88347.0,88329.0,0.01132131]
[1767118382683,0.28908887,88348.0,88332.0,0.01132092]
[1767118382882,0.01136,88347.0,88340.0,0.0002]
[1767118383436,0.01136,88347.0,88334.0,0.28022066]
[1767118383789,0.01136,88347.0,88334.0,0.2689]
[1767118384600,0.022679,88347.0,88334.0,0.2689]
[1767118384946,0.01136,88347.0,88334.0,0.28022066]
[1767118385154,0.01136,88347.0,88334.0,0.2689]
[1767118386604,0.01136,88347.0,88334.0,0.28022066]
[1767118386806,0.01136,88347.0,88334.0,0.2689]
[1767118387494,0.01136,88347.0,88334.0,0.28022066]
[1767118388817,0.0002802,88356.0,88340.0,0.2689]
[1767118388999,0.01136,88354.0,88342.0,0.01131964]
[1767118389165,0.01136,88354.0,88343.0,0.01131951]
[1767118389370,0.01136,88354.0,88342.0,0.28021964]
[1767118390547,0.01136,88354.0,88344.0,0.2689]
[1767118390748,0.01136,88354.0,88345.0,0.01131925]
[1767118390960,0.01136,88354.0,88347.0,0.06791344]
[1767118391161,0.01136,88354.0,88349.0,0.01131874]
[1767118391993,0.01136,88354.0,88348.0,0.01131887]
[1767118392198,0.01136,88354.0,88347.0,0.011319]
[1767118392380,0.01136,88354.0,88348.0,0.01131887]
[1767118394183,0.0002802,88356.0,88349.0,0.01131874]
[1767118394390,0.0002802,88356.0,88348.0,0.01131887]
[1767118394391,0.00856612,88364.0,88358.0,0.01131759]
[1767118394609,0.000899,88358.0,88348.0,0.01136]
[1767118394810,0.278669,88358.0,88350.0,0.01131861]
[1767118395034,0.00856612,88364.0,88354.0,0.27503]
[1767118395208,0.00856612,88364.0,88357.0,0.28634772]
[1767118395396,0.0002134,88368.0,88358.0,0.27503]
[1767118395597,0.00056894,88368.0,88358.0,0.27503]
[1767118395850,0.00056894,88368.0,88358.0,0.28634759]
[1767118396147,0.00056894,88368.0,88358.0,0.27503]
[1767118397134,0.00056894,88368.0,88358.0,0.28634759]
[1767118398299,0.00056894,88368.0,88358.0,0.27503]
[1767118398495,0.00056894,88368.0,88358.0,0.28634759]
[1767118399276,0.00056894,88368.0,88359.0,0.01131746]
[1767118399485,0.00056894,88368.0,88360.0,0.01131733]
[1767118399649,1.994e-05,88368.0,88361.0,0.01131721]
[1767118399849,1.994e-05,88368.0,88358.0,0.28634759]
[1767118400047,1.994e-05,88368.0,88359.0,0.01131746]
[1767118400299,1.994e-05,88368.0,88360.0,0.01131733]
[1767118400537,1.994e-05,88368.0,88359.0,0.01131746]
[1767118400811,1.994e-05,88368.0,88360.0,0.01131733]
[1767118401308,1.994e-05,88368.0,88361.0,0.01131721]
[1767118401857,1.994e-05,88368.0,88360.0,0.01131733]
[1767118402074,1.994e-05,88368.0,88361.0,0.01131721]
[1767118402264,1.994e-05,88368.0,88359.0,0.01131746]
[1767118402796,1.994e-05,88368.0,88361.0,0.01131721]
[1767118403618,1.994e-05,88368.0,88359.0,0.01131746]
[1767118403764,1.994e-05,88368.0,88360.0,0.01131733]
[1767118403966,1.994e-05,88368.0,88361.0,0.01131721]
[1767118404188,1.994e-05,88368.0,88362.0,0.01131708]
[1767118404595,1.994e-05,88368.0,88361.0,0.01131721]
[1767118404811,1.994e-05,88368.0,88360.0,0.01131733]
[1767118405022,1.994e-05,88368.0,88361.0,0.01131721]
[1767118405225,1.994e-05,88368.0,88367.0,0.29646]
[1767118405369,0.0002134,88381.0,88371.0,0.01131592]
[1767118405574,0.0002134,88381.0,88371.0,0.01142254]
[1767118406215,0.0002134,88381.0,88373.0,0.01131567]
[1767118406422,0.0002134,88381.0,88375.0,0.01131541]
[1767118407259,0.0002134,88381.0,88373.0,0.29646]
[1767118407406,0.0002134,88381.0,88373.0,0.30777567]
[1767118407828,0.0002134,88381.0,88373.0,0.29646]
[1767118408436,0.0002134,88381.0,88373.0,0.30777567]
[1767118409040,0.0002134,88381.0,88374.0,0.01131554]
[1767118409682,0.0002134,88381.0,88376.0,0.01131528]
[1767118410055,4e-07,88381.0,88378.0,0.36434961]
[1767118410917,4e-07,88381.0,88378.0,0.29646]
[1767118411118,4e-07,88381.0,88376.0,0.30782]
[1767118411258,4e-07,88381.0,88377.0,0.01131516]
[1767118411468,4e-07,88381.0,88377.0,0.30777516]
[1767118411675,4e-07,88381.0,88377.0,0.29646]
[1767118412323,4e-07,88381.0,88376.0,0.01136]
[1767118413022,4e-07,88381.0,88376.0,0.011148]
[1767118413204,0.2869904,88381.0,88376.0,0.011148]
[1767118414850,4e-07,88381.0,88376.0,0.011148]
[1767118421086,0.28699,88376.0,88374.0,0.01136]
[1767118421205,0.28754,88374.0,88359.0,0.01131746]
[1767118421410,0.28754,88374.0,88362.0,0.01131708]
[1767118421640,0.28699,88374.0,88362.0,0.01131708]
[1767118422615,0.28699,88374.0,88361.0,0.01131721]
[1767118422826,0.28699,88374.0,88363.0,0.01131695]
[1767118424374,0.28699,88374.0,88360.0,0.01136]
[1767118424583,0.29830605,88370.0,88360.0,0.01136]
[1767118424732,0.28699,88370.0,88359.0,0.00035554]
[1767118425136,0.01136,88371.0,88361.0,0.01131721]
[1767118425365,0.01136,88371.0,88359.0,0.00035554]
[1767118425366,0.29835,88371.0,88359.0,0.00035554]
[1767118425562,0.28699,88368.0,88359.0,0.00035554]
[1767118425880,0.28699,88366.0,88359.0,0.00035554]
[1767118431407,0.28563,88362.0,88359.0,0.00035554]
[1767118431610,0.28563,88362.0,88351.0,0.01136]
[1767118431819,0.2859856,88362.0,88351.0,0.01136]
[1767118434512,0.2859856,88362.0,88349.0,0.01158794]
[1767118434727,0.2859856,88362.0,88350.0,0.01131861]
[1767118435082,0.2859856,88362.0,88351.0,0.01131849]
[1767118435468,0.2859856,88362.0,88350.0,0.01131861]
[1767118438010,0.2859856,88362.0,88349.0,0.01158794]
[1767118438920,0.2859856,88362.0,88349.0,0.0002692]
[1767118439791,0.2859856,88362.0,88349.0,0.01158794]
[1767118439952,0.2859856,88362.0,88349.0,0.0002692]
[1767118440355,0.05658906,88357.0,88349.0,0.0002692]
[1767118440556,0.2859856,88362.0,88332.0,0.28517]
[1767118440557,0.29982,88352.0,88332.0,0.28517]
[1767118440757,0.31113874,88349.0,88335.0,0.01136]
[1767118440957,0.29982,88349.0,88336.0,0.01132041]
[1767118441160,0.299271,88349.0,88338.0,0.0566004]
[1767118441360,0.299271,88349.0,88339.0,0.01132002]
[1767118441598,0.299271,88349.0,88339.0,0.06791954]
[1767118442130,0.299271,88349.0,88341.0,0.06791815]
[1767118442287,0.01136,88353.0,88342.0,0.01131964]
[1767118442497,0.29982,88361.0,88345.0,0.01131925]
[1767118442697,0.01136,88360.0,88353.0,0.00055]
[1767118443119,0.29982,88366.0,88350.0,0.61854377]
[1767118443274,0.29982,88366.0,88354.0,0.0113181]
[1767118443467,0.01136,88365.0,88355.0,0.01131797]
[1767118443889,6e-07,88362.0,88355.0,0.01131797]
[1767118444143,6e-07,88362.0,88355.0,0.29648797]
[1767118444347,6e-07,88362.0,88355.0,0.28517]
[1767118444577,6e-07,88362.0,88355.0,0.29648797]
[1767118444718,6e-07,88362.0,88356.0,0.29648785]
[1767118444926,6e-07,88362.0,88356.0,0.28517]
[1767118450116,6e-07,88362.0,88359.0,0.01131746]
[1767118450414,6e-07,88362.0,88360.0,0.28517]
[1767118452086,6e-07,88362.0,88357.0,0.01131772]
[1767118452308,6e-07,88362.0,88359.0,0.01131746]
[1767118452504,0.0002367,88384.0,88368.0,0.01131631]
[1767118452681,0.29982,88383.0,88370.0,0.5503638]
[1767118453164,0.01131452,88382.0,88370.0,0.5503638]
[1767118453319,0.01131464,88381.0,88369.0,0.01136]
[1767118453527,0.31113452,88382.0,88369.0,0.01136]
[1767118454714,0.29982,88382.0,88370.0,0.5503638]
[1767118454930,0.01131464,88381.0,88370.0,0.5503638]
[1767118455944,0.05691508,88384.0,88341.0,0.01131977]
[1767118455945,0.00055,88370.0,88341.0,0.01131977]
[1767118456148,0.00055,88370.0,88334.0,0.0002367]
[1767118456149,0.28982,88351.0,88343.0,0.01136]
[1767118456347,0.01131887,88348.0,88341.0,0.01136]
[1767118456707,0.28982,88352.0,88341.0,0.01136]
[1767118457297,0.28982,88352.0,88341.0,0.02303537]
[1767118458026,0.28982,88352.0,88342.0,0.01131964]
[1767118458406,0.28982,88352.0,88341.0,0.02303537]
[1767118458609,0.28982,88352.0,88341.0,0.0117156]
[1767118458795,0.28982,88352.0,88342.0,0.01131964]
[1767118459622,0.28982,88352.0,88343.0,0.01131951]
[1767118460231,0.01136,88358.0,88343.0,0.01131951]
[1767118460484,0.01136,88358.0,88344.0,0.01131938]
[1767118460485,0.31249759,88358.0,88344.0,0.01131938]
[1767118460811,0.31249759,88358.0,88343.0,0.01131951]
[1767118461168,0.31249759,88358.0,88344.0,0.01131938]
[1767118461491,0.01131772,88357.0,88342.0,0.01131964]
[1767118461643,0.01131772,88357.0,88341.0,0.30075537]
[1767118461824,0.01131772,88357.0,88343.0,0.01131951]
[1767118462054,0.01131772,88357.0,88342.0,0.01131964]
[1767118462658,0.01131772,88357.0,88343.0,0.01131951]
[1767118462859,0.28982,88356.0,88342.0,0.01131964]
[1767118463064,0.28982,88356.0,88341.0,0.30075537]
[1767118463259,0.30113785,88356.0,88342.0,0.01131964]
[1767118463486,0.30113785,88356.0,88341.0,0.2894356]
[1767118463648,0.01131797,88355.0,88341.0,0.2894356]
[1767118463846,0.3011381,88354.0,88341.0,0.0117156]
[1767118464048,0.5503638,88351.0,88341.0,0.0117156]
[1767118464254,0.5503638,88351.0,88342.0,0.01131964]
[1767118466189,0.5503638,88351.0,88343.0,0.01131951]
[1767118466389,0.28982,88354.0,88342.0,0.01131964]
[1767118467018,0.28982,88354.0,88341.0,0.02303537]
[1767118467167,0.28982,88354.0,88342.0,0.01131964]
[1767118468983,0.28982,88354.0,88343.0,0.01131951]
[1767118469850,0.28982,88354.0,88342.0,0.01131964]
[1767118471061,0.28982,88354.0,88343.0,0.01131951]
[1767118471269,0.28982,88354.0,88342.0,0.01131964]
[1767118471455,0.28982,88354.0,88341.0,0.07963379]
[1767118471456,0.28982,88354.0,88341.0,0.02303537]
[1767118471807,0.28982,88354.0,88341.0,0.0117156]
[1767118472012,0.28982,88354.0,88341.0,0.02303537]
[1767118472210,0.28982,88354.0,88341.0,0.0117156]
[1767118473095,0.00025919,88341.0,88339.0,0.01136]
[1767118473314,0.00025919,88341.0,88339.0,0.01142434]
[1767118473522,0.01131861,88350.0,88339.0,0.01142434]
[1767118473946,0.01131721,88361.0,88344.0,0.27772]
[1767118474165,0.28982,88363.0,88350.0,0.5509128]
[1767118474384,0.01131721,88361.0,88350.0,0.5509128]
[1767118474591,0.01131721,88361.0,88350.0,0.5503638]
[1767118474794,0.5503638,88360.0,88347.0,0.27772]
[1767118474997,0.5503638,88360.0,88347.0,0.289039]
[1767118475255,0.5503638,88360.0,88347.0,0.27772]
[1767118475458,0.01131746,88359.0,88347.0,0.27772]
[1767118475699,0.01131733,88360.0,88347.0,0.27772]
[1767118476027,0.01131721,88361.0,88347.0,0.289039]
[1767118476227,0.01131721,88361.0,88347.0,0.27772]
[1767118477679,0.01136,88362.0,88347.0,0.289039]
[1767118477887,0.01131721,88361.0,88347.0,0.27772]
[1767118478126,0.02267708,88362.0,88347.0,0.289039]
[1767118478432,0.02267708,88362.0,88348.0,0.01131887]
[1767118478632,0.01131721,88361.0,88347.0,0.27772]
[1767118479418,0.01131746,88359.0,88347.0,0.27772]
[1767118479753,0.01131721,88361.0,88350.0,0.5503638]
[1767118480117,0.01131733,88360.0,88347.0,0.27772]
[1767118480506,0.01131721,88361.0,88347.0,0.27772]
[1767118480847,0.01131733,88360.0,88347.0,0.27772]
[1767118481238,0.01131733,88360.0,88345.0,0.01131925]
[1767118481659,0.01136,88360.0,88346.0,0.01131913]
[1767118481857,0.01136,88360.0,88347.0,0.011319]
[1767118482257,0.01136,88360.0,88348.0,0.01131887]
[1767118482463,0.01136,88360.0,88347.0,0.011319]